bitfinex-derivatives/quotes_SOLF0:USTF0_20250415
["timestamp","ask_amount","ask_price","bid_price","bid_amount"]
[1744761084000,7.9302,126.11,126.09,0.05216781]
[1744761086103,7.98773342,126.12,126.1,5.64199972]
[1744761089301,7.98773342,126.12,126.1,13.57269972]
[1744761090605,7.98773342,126.12,126.1,5.64199972]
[1744761092208,7.98773342,126.12,126.09,13.62516753]
[1744761092510,0.05783342,126.12,126.09,0.05216781]
[1744761092711,5.64199972,126.11,126.09,0.05216781]
[1744761093207,7.9308,126.1,126.09,0.05216781]
[1744761095210,7.9306,126.11,126.09,0.05216781]
[1744761095813,5.69983314,126.12,126.09,0.05216781]
[1744761097511,5.64199972,126.11,126.09,0.05216781]
[1744761098212,0.05783342,126.12,126.09,0.05216781]
[1744761099213,7.9304,126.11,126.09,0.05216781]
[1744761100115,5.64199972,126.1,126.09,0.05216781]
[1744761100309,5.64199972,126.1,126.04,30.42]
[1744761100511,7.9331,126.07,126.04,30.42]
[1744761100821,5.64199972,126.08,126.04,30.42]
[1744761101011,7.9331,126.07,126.04,30.42]
[1744761101210,7.98316611,126.07,126.04,30.47041735]
[1744761101615,0.05006611,126.07,126.04,30.47041735]
[1744761101815,0.05006611,126.07,126.04,36.11241707]
[1744761102212,7.98316611,126.07,126.04,36.11241707]
[1744761102413,0.05006611,126.07,126.04,36.11241707]
[1744761103113,7.9334,126.06,126.04,36.11241707]
[1744761103318,7.9334,126.06,126.04,30.47041735]
[1744761103709,0.05006611,126.07,126.05,5.64199972]
[1744761103913,0.05006611,126.07,126.06,5.64199972]
[1744761104218,0.05006611,126.07,126.05,5.64199972]
[1744761104418,0.05006611,126.07,126.04,30.47041735]
[1744761104611,0.05006611,126.07,126.04,36.11241707]
[1744761105120,7.98306611,126.07,126.04,36.11241707]
[1744761105916,7.9339,126.05,126.04,36.11241707]
[1744761106116,7.9339,126.05,126.04,0.05041735]
[1744761107222,13.57589972,126.05,126.04,0.05041735]
[1744761113323,7.9339,126.05,126.04,0.05041735]
[1744761114027,13.57589972,126.05,126.04,0.05041735]
[1744761115220,7.9339,126.05,126.04,0.05041735]
[1744761116328,13.57589972,126.05,126.04,0.05041735]
[1744761118425,5.69206583,126.07,126.01,5.64199972]
[1744761118620,36.06199972,126.08,126.03,5.64199972]
[1744761119424,7.9339,126.06,126.04,0.05335954]
[1744761119629,5.6954218,126.07,126.04,0.05335954]
[1744761121331,5.64199972,126.06,126.04,0.05335954]
[1744761121833,7.9339,126.05,126.04,0.05335954]
[1744761123829,7.9336,126.06,126.04,0.05335954]
[1744761124036,5.6954218,126.07,126.04,0.05335954]
[1744761124439,5.64199972,126.06,126.04,0.05335954]
[1744761125038,7.9339,126.05,126.04,0.05335954]
[1744761129447,13.57529972,126.06,126.04,0.05335954]
[1744761129746,0.05342208,126.07,126.04,5.69535926]
[1744761130047,0.05342208,126.07,126.04,36.11535926]
[1744761130447,7.98622208,126.07,126.04,44.04955926]
[1744761130648,7.98622208,126.07,126.04,36.11535926]
[1744761131047,7.98622208,126.07,126.04,44.04985926]
[1744761131247,0.05342208,126.07,126.04,44.04985926]
[1744761133550,0.05342208,126.07,126.05,5.64199972]
[1744761134149,0.05342208,126.07,126.06,7.9333]
[1744761134650,0.05342208,126.07,126.06,13.57529972]
[1744761134946,2.1426,126.15,126.06,13.58199972]
[1744761135150,2.1426,126.15,126.11,5.64199972]
[1744761135450,15.71259972,126.15,126.1,13.57249972]
[1744761135750,0.06046615,126.14,126.11,0.05670438]
[1744761137053,0.06046615,126.14,126.11,13.6287041]
[1744761137553,0.06046615,126.14,126.11,5.6987041]
[1744761138352,7.98886615,126.14,126.11,5.6987041]
[1744761139055,7.98886615,126.14,126.11,0.05670438]
[1744761140148,7.9289,126.13,126.11,0.05670438]
[1744761140753,7.98906615,126.14,126.11,0.05670438]
[1744761142354,7.9291,126.13,126.11,0.05670438]
[1744761142956,13.57149972,126.12,126.11,0.05670438]
[1744761146354,5.64199972,126.12,126.11,0.05670438]
[1744761146555,0.06046615,126.14,126.11,0.05670438]
[1744761147262,7.98906615,126.14,126.11,0.05670438]
[1744761147561,13.63106587,126.14,126.11,0.05670438]
[1744761148064,5.64199972,126.13,126.11,0.05670438]
[1744761152163,13.57089972,126.13,126.11,0.05670438]
[1744761154161,7.9295,126.12,126.11,0.05670438]
[1744761159967,7.9293,126.13,126.11,0.05670438]
[1744761160771,7.9295,126.12,126.11,0.05670438]
[1744761161171,5.70246587,126.14,126.11,0.05670438]
[1744761161373,7.9292,126.13,126.11,0.05670438]
[1744761161570,13.57119972,126.13,126.11,0.05670438]
[1744761164271,7.9295,126.12,126.11,0.05670438]
[1744761164474,13.57149972,126.12,126.11,0.05670438]
[1744761164671,5.64199972,126.12,126.07,38.19319972]
[1744761164869,30.38,126.16,126.11,5.64199972]
[1744761165067,30.38,126.16,126.12,5.64199972]
[1744761165272,5.64199972,126.17,126.12,5.64199972]
[1744761165475,5.64199972,126.15,126.11,5.64199972]
[1744761165671,0.0513825,126.14,126.12,0.06036751]
[1744761165870,5.64199972,126.13,126.12,0.06036751]
[1744761166375,13.57089972,126.13,126.12,0.06036751]
[1744761168276,7.9289,126.13,126.12,0.06036751]
[1744761180487,7.9799825,126.14,126.12,0.06036751]
[1744761180692,0.0513825,126.14,126.13,5.64199972]
[1744761181389,0.0513825,126.14,126.13,13.57089972]
[1744761181594,5.64199972,126.21,126.16,5.64199972]
[1744761182195,5.64199972,126.2,126.16,5.64199972]
[1744761182397,13.56679972,126.2,126.16,13.56869972]
[1744761182592,0.05702918,126.19,126.17,0.05327691]
[1744761183496,0.05702918,126.19,126.17,7.97967691]
[1744761190004,0.05702918,126.19,126.18,7.9258]
[1744761193504,5.6990289,126.19,126.17,0.05327691]
[1744761194501,5.6990289,126.19,126.17,7.97957691]
[1744761194909,5.6990289,126.19,126.17,0.05327691]
[1744761195201,5.64199972,126.18,126.17,0.05327691]
[1744761198201,13.56779972,126.18,126.17,0.05327691]
[1744761198407,5.64199972,126.15,126.1,5.64199972]
[1744761198606,5.64199972,126.14,126.09,40.30809972]
[1744761198906,5.64199972,126.13,126.09,34.6661]
[1744761199405,0.05596504,126.12,126.1,0.05008356]
[1744761201202,7.98556504,126.12,126.1,0.05008356]
[1744761201510,5.64199972,126.11,126.1,0.05008356]
[1744761202008,13.57219972,126.11,126.1,0.05008356]
[1744761202308,0.05596504,126.12,126.1,0.05008356]
[1744761202609,0.05596504,126.12,126.1,5.69208328]
[1744761203908,0.05596504,126.12,126.1,13.62248328]
[1744761204108,0.05596504,126.12,126.11,5.64199972]
[1744761205507,0.05596504,126.12,126.1,13.62248328]
[1744761210710,0.05596504,126.12,126.11,7.9302]
[1744761211010,5.64199972,126.16,126.11,5.64199972]
[1744761212009,0.05755992,126.15,126.12,0.05726431]
[1744761212206,0.05755992,126.15,126.12,7.98646431]
[1744761213209,0.05755992,126.15,126.13,13.57079972]
[1744761213407,0.05755992,126.15,126.14,5.64199972]
[1744761213709,0.05755992,126.15,126.14,13.57029972]
[1744761214017,35.96199972,126.23,126.14,5.64199972]
[1744761214313,35.96199972,126.23,126.18,5.64199972]
[1744761214507,7.9239,126.21,126.18,5.64199972]
[1744761214707,7.9239,126.21,126.17,43.88809972]
[1744761214910,0.05221903,126.2,126.18,0.05167603]
[1744761215105,7.97691903,126.2,126.18,0.05167603]
[1744761215516,0.05221903,126.2,126.18,0.05167603]
[1744761216316,7.97691903,126.2,126.18,0.05167603]
[1744761216512,5.69421875,126.2,126.18,0.05167603]
[1744761217018,7.9251,126.19,126.18,0.05167603]
[1744761221227,7.97701903,126.2,126.18,0.05167603]
[1744761221611,0.05221903,126.2,126.18,0.05167603]
[1744761222523,7.97701903,126.2,126.18,0.05167603]
[1744761224422,7.9251,126.19,126.18,0.05167603]
[1744761228719,7.97681903,126.2,126.18,0.05167603]
[1744761229116,0.05221903,126.2,126.18,0.05167603]
[1744761229321,0.05221903,126.2,126.19,5.64199972]
[1744761229523,0.05221903,126.2,126.18,5.69367575]
[1744761229722,0.05221903,126.2,126.18,0.05167603]
[1744761229920,7.9251,126.19,126.18,0.05167603]
[1744761231125,7.97711903,126.2,126.18,0.05167603]
[1744761231327,0.05221903,126.2,126.18,0.05167603]
[1744761232423,7.97681903,126.2,126.18,0.05167603]
[1744761234923,0.05221903,126.2,126.19,5.64199972]
[1744761235427,0.05221903,126.2,126.19,13.56709972]
[1744761237230,0.05221903,126.2,126.19,5.64199972]
[1744761238732,0.05221903,126.2,126.19,13.56709972]
[1744761239134,0.05221903,126.2,126.19,43.86709972]
[1744761240231,7.9224,126.24,126.2,7.9239]
[1744761240428,30.32,126.26,126.22,5.64199972]
[1744761240926,35.96199972,126.26,126.21,5.64199972]
[1744761241330,7.9224,126.24,126.22,0.05526863]
[1744761241735,5.69265003,126.25,126.22,0.05526863]
[1744761241934,7.922,126.24,126.22,0.05526863]
[1744761242336,5.69265003,126.25,126.22,0.05526863]
[1744761242536,7.9223,126.24,126.22,0.05526863]
[1744761243732,5.69265003,126.25,126.22,0.05526863]
[1744761244336,7.9224,126.24,126.22,0.05526863]
[1744761244636,5.64199972,126.23,126.22,0.05526863]
[1744761244934,13.56459972,126.23,126.22,0.05526863]
[1744761246037,7.9245,126.2,126.19,30.3]
[1744761246240,5.64199972,126.2,126.16,4.3473]
[1744761246436,5.64199972,126.2,126.16,2.1915]
[1744761246635,7.9254,126.19,126.16,10.1182]
[1744761247140,7.97626007,126.19,126.16,10.1783426]
[1744761247440,5.64199972,126.18,126.16,0.0601426]
[1744761248029,13.56809972,126.18,126.16,0.0601426]
[1744761250141,7.9264,126.17,126.16,0.0601426]
[1744761252947,13.56809972,126.18,126.16,0.0601426]
[1744761253348,5.64199972,126.18,126.16,0.0601426]
[1744761254147,7.9264,126.17,126.16,0.0601426]
[1744761255043,13.56809972,126.18,126.16,0.0601426]
[1744761255243,5.64199972,126.18,126.16,0.0601426]
[1744761256150,13.56809972,126.18,126.16,0.0601426]
[1744761257244,13.56839972,126.17,126.16,0.0601426]
[1744761257449,35.94199972,126.17,126.11,30.3]
[1744761257649,5.64199972,126.14,126.11,30.3]
[1744761257947,13.57079972,126.14,126.11,30.3]
[1744761258450,13.62622872,126.14,126.11,30.35853761]
[1744761259451,7.984229,126.14,126.11,30.35853761]
[1744761261250,7.9289,126.13,126.11,30.35853761]
[1744761261751,5.69742872,126.14,126.11,30.35853761]
[1744761262050,5.69742872,126.14,126.11,0.05853761]
[1744761262551,7.9294,126.13,126.11,0.05853761]
[1744761263150,7.9295,126.12,126.11,0.05853761]
[1744761264153,13.57149972,126.12,126.11,0.05853761]
[1744761265053,7.9295,126.12,126.11,0.05853761]
[1744761265354,13.57149972,126.12,126.11,0.05853761]
[1744761270749,5.64199972,126.12,126.04,42.4167]
[1744761270952,5.64199972,126.08,126.04,40.216]
[1744761271155,13.57449972,126.08,126.04,40.216]
[1744761271756,0.0542345,126.07,126.05,0.05553361]
[1744761273262,0.0542345,126.07,126.05,7.98943361]
[1744761274159,0.0542345,126.07,126.05,13.63143333]
[1744761276254,0.0542345,126.07,126.05,5.69753333]
[1744761276759,0.0542345,126.07,126.05,13.63113333]
[1744761277260,7.9309,126.1,126.06,13.57529972]
[1744761277557,7.9309,126.1,126.07,5.64199972]
[1744761277758,7.9309,126.1,126.06,5.64199972]
[1744761278161,7.9309,126.1,126.06,13.57489972]
[1744761278462,0.05334564,126.09,126.05,0.05553361]
[1744761278657,0.05334564,126.09,126.08,5.64199972]
[1744761278862,0.05334564,126.09,126.08,13.57359972]
[1744761280163,30.3,126.14,126.1,7.9304]
[1744761280462,30.3,126.14,126.1,13.57239972]
[1744761281064,0.05359128,126.13,126.11,7.98316129]
[1744761281663,0.05359128,126.13,126.12,13.57149972]
[1744761282563,30.3,126.17,126.13,7.9283]
[1744761282766,7.9261,126.18,126.14,5.64199972]
[1744761283160,7.9261,126.18,126.14,13.56999972]
[1744761283564,0.0592104,126.17,126.15,0.053128]
[1744761284364,7.9856104,126.17,126.15,0.053128]
[1744761285769,13.56899972,126.16,126.15,0.053128]
[1744761285969,13.56899972,126.16,126.11,9.76329972]
[1744761286169,5.64199972,126.15,126.11,9.76329972]
[1744761286469,13.56989972,126.15,126.11,17.69319972]
[1744761286870,0.06091676,126.14,126.12,0.06093991]
[1744761289070,0.06091676,126.14,126.12,7.99043991]
[1744761289671,0.06091676,126.14,126.13,7.9289]
[1744761290570,0.06091676,126.14,126.13,13.57089972]
[1744761293971,0.06091676,126.14,126.13,7.9289]
[1744761294168,0.06091676,126.14,126.12,0.06093991]
[1744761294471,5.64199972,126.13,126.12,0.06093991]
[1744761294867,13.57089972,126.13,126.12,0.06093991]
[1744761296571,13.63151648,126.14,126.12,0.06093991]
[1744761297273,7.98951676,126.14,126.12,0.06093991]
[1744761297467,7.9289,126.13,126.12,0.06093991]
[1744761297669,0.06091676,126.14,126.12,0.06093991]
[1744761297971,7.98951676,126.14,126.12,0.06093991]
[1744761298170,0.06091676,126.14,126.12,0.06093991]
[1744761300474,7.98931676,126.14,126.12,0.06093991]
[1744761303776,7.9289,126.13,126.12,0.06093991]
[1744761304978,0.06091676,126.14,126.12,0.06093991]
[1744761304979,7.98961676,126.14,126.12,0.06093991]
[1744761305278,0.06091676,126.14,126.12,0.06093991]
[1744761305776,0.06091676,126.14,126.13,7.9289]
[1744761306077,7.926,126.18,126.13,30.26]
[1744761306378,7.926,126.18,126.14,7.9277]
[1744761307077,0.05178941,126.17,126.15,0.05252144]
[1744761307878,7.97828941,126.17,126.15,0.05252144]
[1744761309577,0.05178941,126.17,126.15,0.05252144]
[1744761310672,41.11471119,126.24,126.16,39.08711119]
[1744761310867,41.11471119,126.24,126.16,41.15581119]
[1744761311279,7.9237,126.22,126.18,7.9254]
[1744761311776,7.9237,126.22,126.16,41.15581119]
[1744761311777,7.98400667,126.21,126.19,0.05985863]
[1744761312379,0.06000667,126.21,126.19,0.05985863]
[1744761313478,7.98420667,126.21,126.19,0.05985863]
[1744761315578,0.06000667,126.21,126.19,0.05985863]
[1744761315970,0.06000667,126.21,126.19,7.98465863]
[1744761316377,0.06000667,126.21,126.19,38.24465863]
[1744761319177,0.06000667,126.21,126.19,30.31985863]
[1744761320284,0.06000667,126.21,126.19,38.24465863]
[1744761320983,0.06000667,126.21,126.2,7.9245]
[1744761321184,5.63984499,126.25,126.2,5.63984499]
[1744761321375,5.63984499,126.26,126.21,5.63984499]
[1744761321580,7.9216,126.25,126.21,13.56334499]
[1744761321882,5.63984499,126.26,126.21,13.56334499]
[1744761322286,7.9221,126.24,126.22,0.0589335]
[1744761326387,7.97869258,126.25,126.22,0.0589335]
[1744761327079,7.97869258,126.25,126.22,5.69877849]
[1744761327281,0.05709258,126.25,126.22,5.69877849]
[1744761327483,0.05709258,126.25,126.23,5.63984499]
[1744761330391,0.05709258,126.25,126.23,13.56234499]
[1744761330991,0.05709258,126.25,126.23,5.63984499]
[1744761331591,0.05709258,126.25,126.23,13.56214499]
[1744761334292,0.05709258,126.25,126.24,13.56184499]
[1744761339587,30.22,126.33,126.26,7.9204]
[1744761339792,5.63984499,126.31,126.27,5.63984499]
[1744761340093,7.9185,126.3,126.27,5.63984499]
[1744761340289,5.63984499,126.34,126.29,5.63984499]
[1744761340496,5.63984499,126.35,126.3,5.63984499]
[1744761340696,7.9167,126.33,126.31,0.0569673]
[1744761346105,5.69274703,126.34,126.31,0.0569673]
[1744761347404,7.9168,126.33,126.31,0.0569673]
[1744761348199,5.69274703,126.34,126.31,0.0569673]
[1744761348403,5.63984499,126.32,126.27,35.83984499]
[1744761348601,5.63984499,126.31,126.27,35.83984499]
[1744761349295,0.05674124,126.3,126.28,0.05014178]
[1744761349500,7.97524124,126.3,126.28,0.05014178]
[1744761349697,0.05674124,126.3,126.28,0.05014178]
[1744761349901,5.69658623,126.3,126.28,0.05014178]
[1744761350396,7.9189,126.29,126.28,0.05014178]
[1744761354613,7.97524124,126.3,126.28,0.05014178]
[1744761354914,7.97524124,126.3,126.28,5.68998677]
[1744761355117,0.05674124,126.3,126.28,13.60938677]
[1744761355311,0.05674124,126.3,126.29,5.63984499]
[1744761355914,0.05674124,126.3,126.29,13.55874499]
[1744761357515,7.9167,126.33,126.3,7.9181]
[1744761357715,7.9167,126.33,126.31,5.63984499]
[1744761358416,7.96956405,126.33,126.31,5.69600247]
[1744761359620,0.05286405,126.33,126.31,5.69600247]
[1744761360319,0.05286405,126.33,126.31,13.61360247]
[1744761361321,0.05286405,126.33,126.31,0.05615748]
[1744761361522,7.96946405,126.33,126.31,0.05615748]
[1744761369326,5.63984499,126.32,126.27,35.81984499]
[1744761369530,5.63984499,126.28,126.23,42.11184499]
[1744761369732,5.63984499,126.28,126.23,40.03714499]
[1744761369931,7.9206,126.27,126.23,47.95944499]
[1744761370328,0.05509911,126.26,126.24,0.05211135]
[1744761372135,0.05509911,126.26,126.25,5.63984499]
[1744761373130,0.05509911,126.26,126.25,13.56124499]
[1744761373331,0.05509911,126.26,126.25,5.63984499]
[1744761375639,0.05509911,126.26,126.25,13.56124499]
[1744761382139,0.05509911,126.26,126.25,7.9214]
[1744761385737,0.05509911,126.26,126.25,13.56124499]
[1744761386039,30.18,126.3,126.26,7.9204]
[1744761386341,7.9185,126.3,126.26,13.56024499]
[1744761386844,0.05296392,126.29,126.27,0.0577967]
[1744761387038,0.05296392,126.29,126.27,7.9778967]
[1744761388046,0.05296392,126.29,126.28,7.9195]
[1744761389745,0.05296392,126.29,126.28,13.55934499]
[1744761390242,7.9165,126.33,126.28,5.63984499]
[1744761390547,7.9165,126.33,126.3,5.63984499]
[1744761391347,7.97591109,126.33,126.3,13.61634522]
[1744761391544,0.05941109,126.33,126.3,13.61634522]
[1744761393148,0.05941109,126.33,126.31,7.9176]
[1744761394147,0.05941109,126.33,126.3,13.61634522]
[1744761395245,0.05941109,126.33,126.31,7.9173]
[1744761395449,0.05941109,126.33,126.31,13.55714499]
[1744761395746,0.05941109,126.33,126.31,5.63984499]
[1744761397349,7.97581109,126.33,126.3,5.69834522]
[1744761397549,13.61565608,126.33,126.3,0.05850023]
[1744761398150,13.61565608,126.33,126.3,7.97670023]
[1744761398350,13.61565608,126.33,126.3,0.05850023]
[1744761398544,0.05941109,126.33,126.3,5.69834522]
[1744761399047,0.05941109,126.33,126.3,13.61624522]
[1744761399351,0.05941109,126.33,126.3,5.69834522]
[1744761399650,0.05941109,126.33,126.3,0.05850023]
[1744761399852,7.97631109,126.33,126.3,0.05850023]
[1744761401551,7.917,126.32,126.3,0.05850023]
[1744761401750,5.63984499,126.31,126.3,0.05850023]
[1744761402953,13.55744499,126.31,126.3,0.05850023]
[1744761403152,35.85925608,126.33,126.3,0.05850023]
[1744761403459,7.9173,126.32,126.3,0.05850023]
[1744761405654,38.13611109,126.33,126.3,0.05850023]
[1744761405854,30.21941109,126.33,126.3,5.69834522]
[1744761406156,30.21941109,126.33,126.3,13.61634522]
[1744761406455,0.05941109,126.33,126.3,13.61634522]
[1744761406857,7.97581109,126.33,126.3,13.61634522]
[1744761407051,0.05941109,126.33,126.3,13.61634522]
[1744761407351,0.05941109,126.33,126.31,7.9176]
[1744761408556,0.05941109,126.33,126.3,13.61624522]
[1744761412159,7.97581109,126.33,126.3,5.69834522]
[1744761412858,7.97581109,126.33,126.3,0.05850023]
[1744761414661,7.97581109,126.33,126.3,7.97660023]
[1744761415863,0.05941109,126.33,126.3,0.05850023]
[1744761416062,5.63984499,126.32,126.3,0.05850023]
[1744761418263,7.9176,126.31,126.3,0.05850023]
[1744761420867,7.97601109,126.33,126.3,0.05850023]
[1744761421469,7.917,126.32,126.3,7.97650023]
[1744761422068,7.917,126.32,126.3,0.05850023]
[1744761422269,7.9176,126.31,126.3,0.05850023]
[1744761423265,13.55744499,126.31,126.3,0.05850023]
[1744761423670,7.9193,126.29,126.26,30.16]
[1744761423859,5.63984499,126.3,126.26,30.16]
[1744761424366,13.55844499,126.3,126.26,38.0805]
[1744761424565,0.04994117,126.29,126.27,0.05491359]
[1744761425771,7.96884117,126.29,126.27,0.05491359]
[1744761429374,0.04994117,126.29,126.27,5.69475858]
[1744761430176,0.04994117,126.29,126.27,0.05491359]
[1744761431174,7.9195,126.28,126.27,0.05491359]
[1744761443292,5.63984499,126.28,126.19,30.14]
[1744761443584,30.14,126.29,126.2,2.0838]
[1744761443782,7.9237,126.22,126.2,2.0838]
[1744761444280,0.05949438,126.22,126.21,5.63984499]
[1744761444478,7.9223,126.24,126.21,5.63984499]
[1744761444988,7.9227,126.23,126.21,5.63984499]
[1744761445178,7.9227,126.23,126.2,7.78403041]
[1744761445488,7.97765677,126.23,126.2,7.78403041]
[1744761445688,7.97765677,126.23,126.2,15.70813041]
[1744761446191,7.9233,126.22,126.2,15.70813041]
[1744761446390,7.9233,126.22,126.2,7.78403041]
[1744761446584,0.05495677,126.23,126.2,7.78403041]
[1744761446585,0.05495677,126.23,126.2,2.14418542]
[1744761446890,7.9239,126.21,126.2,2.14418542]
[1744761447990,7.9239,126.21,126.2,7.78403041]
[1744761449988,7.9239,126.21,126.2,2.14418542]
[1744761451891,7.9235,126.22,126.2,2.14418542]
[1744761453294,0.05495677,126.23,126.2,2.14418542]
[1744761453494,5.69480176,126.23,126.2,2.14418542]
[1744761453889,7.9239,126.21,126.2,2.14418542]
[1744761454995,7.9239,126.21,126.2,0.06038542]
[1744761459498,7.9239,126.21,126.16,4.1251]
[1744761459499,5.63984499,126.21,126.16,34.2451]
[1744761459798,5.63984499,126.2,126.16,39.88494499]
[1744761460502,0.05405093,126.19,126.17,0.05080189]
[1744761461003,7.97955093,126.19,126.17,0.05080189]
[1744761463799,7.9258,126.18,126.17,0.05080189]
[1744761464007,13.56564499,126.18,126.17,0.05080189]
[1744761469609,7.9282,126.15,126.13,30.12]
[1744761469800,5.63984499,126.15,126.13,30.12]
[1744761470004,5.63984499,126.18,126.13,35.75984499]
[1744761470206,7.9271,126.16,126.13,43.68834499]
[1744761470608,7.9842847,126.16,126.13,43.74650816]
[1744761471308,7.9278,126.15,126.13,30.17816317]
[1744761471505,5.63984499,126.15,126.13,30.17816317]
[1744761471705,5.63984499,126.14,126.13,30.17816317]
[1744761472208,13.56814499,126.14,126.13,30.17816317]
[1744761473007,7.9283,126.14,126.13,30.17816317]
[1744761473703,13.56814499,126.14,126.13,30.17816317]
[1744761473906,13.56814499,126.14,126.13,0.05816317]
[1744761474910,7.928,126.15,126.13,0.05816317]
[1744761475111,5.69702969,126.16,126.13,0.05816317]
[1744761475300,5.63984499,126.15,126.13,0.05816317]
[1744761476114,7.9283,126.14,126.13,0.05816317]
[1744761478115,7.928,126.15,126.13,0.05816317]
[1744761478608,5.69702969,126.16,126.13,0.05816317]
[1744761478806,7.9283,126.14,126.13,0.05816317]
[1744761482321,7.928,126.15,126.13,0.05816317]
[1744761483526,7.9845847,126.16,126.13,7.98696317]
[1744761483721,0.0571847,126.16,126.13,7.98696317]
[1744761484225,0.0571847,126.16,126.14,7.9278]
[1744761486127,0.0571847,126.16,126.13,35.83800816]
[1744761486427,0.0571847,126.16,126.14,7.9279]
[1744761488623,0.0571847,126.16,126.15,7.9277]
[1744761489031,0.0571847,126.16,126.15,13.56754499]
[1744761490535,43.68474499,126.2,126.16,7.9267]
[1744761491235,43.68474499,126.2,126.17,7.9261]
[1744761491636,13.62296411,126.2,126.17,7.98547392]
[1744761493440,13.62296411,126.2,126.17,0.05937392]
[1744761493629,5.69806411,126.2,126.17,0.05937392]
[1744761493833,0.05821912,126.2,126.17,5.69921891]
[1744761494740,0.05821912,126.2,126.18,7.9257]
[1744761495037,0.05821912,126.2,126.17,5.69921891]
[1744761495535,0.05821912,126.2,126.18,7.9257]
[1744761495838,0.05821912,126.2,126.19,7.9251]
[1744761496133,30.1,126.27,126.19,5.63984499]
[1744761496440,5.63984499,126.26,126.22,5.63984499]
[1744761496640,13.56094499,126.26,126.22,43.66264499]
[1744761497135,0.05259112,126.25,126.23,0.0577192]
[1744761498940,0.05259112,126.25,126.23,7.9803192]
[1744761499345,0.05259112,126.25,126.23,5.69756419]
[1744761501341,0.05259112,126.25,126.24,7.922]
[1744761502545,5.63984499,126.3,126.24,5.63984499]
[1744761502748,7.67074499,126.31,126.26,5.63984499]
[1744761502947,5.63984499,126.3,126.26,5.63984499]
[1744761503137,5.63984499,126.3,126.25,35.73984499]
[1744761503537,5.63984499,126.3,126.26,0.05108978]
[1744761503746,0.05695188,126.29,126.26,0.05108978]
[1744761503937,7.97615188,126.29,126.26,7.97158978]
[1744761505139,0.05695188,126.29,126.26,7.97158978]
[1744761506538,5.69679687,126.29,126.26,0.05108978]
[1744761506738,5.63984499,126.28,126.26,0.05108978]
[1744761507141,13.61589687,126.29,126.26,0.05108978]
[1744761507944,0.05695188,126.29,126.26,0.05108978]
[1744761508344,0.05695188,126.29,126.27,7.9198]
[1744761508845,0.05695188,126.29,126.26,13.61143477]
[1744761509045,0.05695188,126.29,126.26,7.97158978]
[1744761509346,0.05695188,126.29,126.26,0.05108978]
[1744761509547,0.05695188,126.29,126.27,7.9198]
[1744761510648,0.05695188,126.29,126.28,7.9195]
[1744761511448,0.05695188,126.29,126.26,0.05108978]
[1744761511648,5.69679687,126.29,126.26,0.05108978]
[1744761512648,13.61569687,126.29,126.26,7.97148978]
[1744761512844,13.61569687,126.29,126.26,0.05108978]
[1744761513044,5.63984499,126.28,126.26,0.05108978]
[1744761513241,5.63984499,126.28,126.26,7.97148978]
[1744761513445,13.61589687,126.29,126.26,7.97148978]
[1744761513750,0.05695188,126.29,126.27,7.92]
[1744761515153,13.61579687,126.29,126.26,7.97148978]
[1744761515857,0.05695188,126.29,126.27,7.9201]
[1744761516754,7.97585188,126.29,126.27,7.9201]
[1744761517050,5.63984499,126.28,126.26,0.05108978]
[1744761517253,5.63984499,126.27,126.26,0.05108978]
[1744761517749,5.63984499,126.27,126.2,364.0753]
[1744761517954,5.63984499,126.27,126.19,5.63984499]
[1744761517955,5.63984499,126.22,126.19,30.06]
[1744761518255,5.63984499,126.22,126.16,4.0774]
[1744761518256,5.63984499,126.2,126.16,36.2127]
[1744761518655,0.05701898,126.19,126.17,7.98276476]
[1744761519858,5.69686397,126.19,126.17,0.05676476]
[1744761520657,5.63984499,126.18,126.17,0.05676476]
[1744761523457,13.56564499,126.18,126.17,0.05676476]
[1744761529161,7.9281,126.15,126.1,5.63984499]
[1744761529362,5.63984499,126.14,126.1,30.06]
[1744761529759,5.63984499,126.14,126.11,7.93]
[1744761529957,5.63984499,126.13,126.1,30.06]
[1744761530153,5.63984499,126.13,126.1,30.11077332]
[1744761530456,5.69318729,126.13,126.1,30.11077332]
[1744761530863,5.63984499,126.11,126.1,0.05077332]
[1744761532168,13.56974499,126.12,126.1,0.05077332]
[1744761534171,5.63984499,126.12,126.1,0.05077332]
[1744761534369,13.62228729,126.13,126.1,7.98147332]
[1744761534567,0.0533423,126.13,126.1,7.98147332]
[1744761534765,0.0533423,126.13,126.1,0.05077332]
[1744761534966,0.0533423,126.13,126.12,5.63984499]
[1744761535474,5.63984499,126.19,126.15,7.9274]
[1744761535672,5.63984499,126.19,126.14,5.63984499]
[1744761535873,13.56534499,126.19,126.14,5.63984499]
[1744761536071,13.56534499,126.19,126.15,7.9274]
[1744761536468,0.05170739,126.18,126.16,0.05072428]
[1744761537473,5.69155238,126.18,126.16,0.05072428]
[1744761538074,13.61785238,126.18,126.16,0.05072428]